Cogmind - Beta 9.6 @@@ ROGUE MODE // 2020.07.13 @ 19:16:34 Player: mr_sack Result: Destroyed by G-47 Trooper with Particle Gun Performance ------------- Evolutions (0) 0 Regions Visited (2) 400 Robots Destroyed (10) 50 Value Destroyed (157) 157 Prototype IDs (0) 0 Alien Tech Used (0) 0 Bonus (0) 0 TOTAL SCORE: 607 Bonus ------- None Cogmind --------- Core Integrity 0/250 Matter 300/300 Energy 236/250 System Corruption 0% Temperature Cool (326) Movement Rolling (90) Ox1 Location -10/Mines Parts ------- > --- POWER (1) -------- Ion Engine > --- PROPULSION (2) --- Wheel Wheel > --- UTILITY (2) ------ Large Storage Unit Signal Interpreter > --- WEAPON (2) ------- Beam Cannon Beam Cannon > --- INVENTORY (10) --- Light Treads Compact Wheel Seismic Analyzer Mining Claw Peak State ------------ > --- POWER ------------ Ion Engine > --- PROPULSION ------- Light Treads Wheel > --- UTILITY ---------- Small Storage Unit Improved Terrain Scanner > --- WEAPON ----------- Medium Laser Small Laser > --- INVENTORY -------- Ion Engine Light Treads Compact Wheel Small Laser [Rating: 8] Favorites ----------- Power Ion Engine Engine Ion Engine Propulsion Wheel Treads Light Treads Wheel Wheel Utility Large Storage Unit Device Improved Terrain Scanner Storage Large Storage Unit Processor Signal Interpreter Weapon Beam Cannon Energy Gun Small Laser Energy Cannon Beam Cannon Special Weapon Mining Laser Build | -11 -10 -10 ------- Run | Scr Mat Min Slots Evolved . | . . . Power . | . . . Propulsion . | . . . Utility . | . . . Weapon . | . . . Parts Attached 18 | 8 9 1 Power 2 | 1 1 . Engine 2 | 1 1 . Core . | . . . Reactor . | . . . Propulsion 5 | 2 2 1 Treads 1 | 1 . . Leg . | . . . Wheel 4 | 1 2 1 Hover . | . . . Flight . | . . . Utility 4 | 2 2 . Device 1 | 1 . . Storage 2 | 1 1 . Processor 1 | . 1 . Hackware . | . . . Protection . | . . . Artifact . | . . . Weapon 7 | 3 4 . Energy Gun 4 | 3 1 . Energy Cannon 2 | . 2 . Ballistic Gun . | . . . Ballistic Cannon . | . . . Launcher . | . . . Special Weapon 1 | . 1 . Impact Weapon . | . . . Slashing Weapon . | . . . Piercing Weapon . | . . . Special Melee Weapon . | . . . Unidentified Prototypes . | . . . Parts Lost 7 | . 7 . Power 1 | . 1 . Propulsion 1 | . 1 . Utility 1 | . 1 . Weapon 4 | . 4 . Highest Loss Streak 7 | . 7 . Average Slot Usage (%) 92 | . 85 100 Engine 13 | . 13 14 Treads 6 | . 11 . Wheel 20 | . 14 28 Device 3 | . 7 . Storage 14 | . 14 14 Processor 8 | . 3 14 Energy Gun 8 | . 15 . Energy Cannon 14 | . 2 28 Special Weapon 1 | . 1 . Naked Turns . | . . . Heaviest Build 27 | 13 27 27 Greatest Support 26 | 20 26 26 Greatest Overweight (x) 2 | 1 2 1 Average Overweight (x) 1 | . 1 1 Largest Inventory Capacity 10 | 6 10 10 Average Capacity 8 | 5 9 10 Most Carried 6 | 6 6 4 Average Carried 3 | 2 4 3 Final Capacity 10 | 6 10 10 Final Carried 6 | 6 3 4 Class Distribution -------------------- 100% | Mutant Dominant Class ---------------- Mutant | -10/Materials Mutant | -10/Mines Resources | -11 -10 -10 ----------- Run | Scr Mat Min Matter Collected 371 | 280 51 40 Remotely . | . . . Salvage Created 353 | 179 116 58 Parts 21 | 13 5 3 Haulers Intercepted . | . . . Recyclers Shooed . | . . . Parts Field Recycled . | . . . Retrieved Matter . | . . . Parts Self-Destructed . | . . . Prevented . | . . . Kills | -11 -10 -10 ------- Run | Scr Mat Min Combat Hostiles Destroyed 3 | . 2 1 Guns 1 | . 1 . Cannons 1 | . . 1 Classes Destroyed 4 | 2 2 . Worker 1 | . 1 . Tunneler 5 | 4 . 1 Recycler 1 | 1 . . Grunt 3 | . 2 1 Best Kill Streak 3 | 3 1 1 Combat Bots Only 1 | . 1 1 Max Kills in Single Turn 1 | 1 1 1 Gunslinging . | . . . Exploded . | . . . Melee . | . . . Uniques/NPCs Destroyed . | . . . Combat | -11 -10 -10 -------- Run | Scr Mat Min Damage Taken 815 | . 705 110 Core 254 | . 240 14 Absorbed by Shields . | . . . Core Remaining (%) 100 | 100 . . Volleys Fired 32 | 8 15 9 Largest 2 | 2 2 2 Hottest 140 | 90 140 120 Shots Fired 56 | 16 22 18 Gun 36 | 16 20 . Cannon 18 | . . 18 Launcher . | . . . Special 2 | . 2 . Kinetic . | . . . Thermal 56 | 16 22 18 Explosive . | . . . Electromagnetic . | . . . Robot Hit Streak 11 | 10 11 2 Robot Miss Streak 6 | 1 1 6 Penetration Max . | . . . Secondary Targets . | . . . Shots Hit Robots 37 | 13 18 6 Core Hits 14 | 6 6 2 Critical Hits . | . . . Critical Kills . | . . . Critical Parts Destroyed . | . . . Melee Attacks . | . . . Impact . | . . . Slashing . | . . . Piercing . | . . . Sneak Attacks . | . . . Combat Hostiles . | . . . Follow-up Attacks . | . . . Damage Inflicted 485 | 154 226 105 Guns 352 | 154 198 . Cannons 105 | . . 105 Explosions . | . . . Melee . | . . . Ramming 4 | . 4 . Kinetic . | . . . Thermal 481 | 154 222 105 Explosive . | . . . Electromagnetic . | . . . Impact . | . . . Slashing . | . . . Piercing . | . . . Highest Corruption . | . . . Average Corruption . | . . . Corruption Purged . | . . . Overload Shots . | . . . Overflow Damage . | . . . Projectiles . | . . . Explosions . | . . . Melee . | . . . Knockbacks . | . . . Impact . | . . . Kinetic . | . . . Secondary . | . . . Self-Inflicted Damage 2 | . 2 . Shots . | . . . Rammed 1 | . 1 . Targets Rammed 1 | . 1 . Kicked . | . . . Crushed . | . . . Highest Temperature 334 | 90 334 317 Average Temperature 113 | 32 167 88 Received Heat Transfer 450 | . 384 66 Siege Activations . | . . . Robots Corrupted . | . . . Combat Hostiles . | . . . Parts Fried . | . . . Impact Corruptions . | . . . Robots Melted 1 | . 1 . Combat Hostiles 1 | . 1 . Parts Melted 1 | 1 . . Heat Transferred 1166 | 409 535 222 Parts Sabotaged . | . . . Parts Stolen . | . . . Parts Stripped . | . . . Power Chain Reactions . | . . . Missiles Intercepted . | . . . Alert | -11 -10 -10 ------- Run | Scr Mat Min Peak Influence 66 | 25 66 22 Average Influence 20 | 10 33 11 Maximum Alert Level . | . . . Low Security (%) 100 | 100 100 100 Level 1 . | . . . Level 2 . | . . . Level 3 . | . . . Level 4 . | . . . Level 5 . | . . . High Security . | . . . Max Security . | . . . Squads Dispatched 2 | . 2 . Investigation 1 | . 1 . Extermination . | . . . Reinforcement 1 | . 1 . Assault . | . . . Garrison . | . . . Intercept . | . . . Construction Impeded . | . . . Haulers Reinforced . | . . . Stealth | -11 -10 -10 --------- Run | Scr Mat Min Distress Signals . | . . . Communications Jammed . | . . . Distress Signals . | . . . Times Spotted 13 | . 10 3 Peak Tracking Total 7 | . 6 7 Tactical Retreats 2 | . 1 1 Traps | -11 -10 -10 ------- Run | Scr Mat Min Traps Triggered 1 | . 1 . Indirectly . | . . . Trap Hack Attempts . | . . . Triggered . | . . . Disarmed . | . . . Reprogrammed . | . . . Reused . | . . . Traps Extracted . | . . . Installed . | . . . Triggered . | . . . Machines | -11 -10 -10 ---------- Run | Scr Mat Min Machines Disabled . | . . . Max in Single Turn . | . . . Machines Sabotaged . | . . . Garrisons Compromised . | . . . Overloaded Fab Kills . | . . . Fab Network Shutdowns . | . . . Hacking | -11 -10 -10 --------- Run | Scr Mat Min Machines Accessed 1 | . 1 . Terminals 1 | . 1 . Fabricators . | . . . Repair Stations . | . . . Recycling Units . | . . . Scanalyzers . | . . . Garrison Access . | . . . Total Hacks 2 | . 2 . Successful 1 | . 1 . Failed 1 | . 1 . Catastrophic 1 | . 1 . Database Lockouts . | . . . Manual 2 | . 2 . Terminals 2 | . 2 . Fabricators . | . . . Repair Stations . | . . . Recycling Units . | . . . Scanalyzers . | . . . Garrison Access . | . . . Terminal Hacks 1 | . 1 . Terminal Index 1 | . 1 . Fabricator Hacks . | . . . Repair Station Hacks . | . . . Recycling Unit Hacks . | . . . Scanalyzer . | . . . Garrison Access Hacks . | . . . Unauthorized Hacks . | . . . Terminals . | . . . Fabricators . | . . . Repair Stations . | . . . Recycling Units . | . . . Scanalyzers . | . . . Garrison Access . | . . . Data Cores Recovered . | . . . Used . | . . . Hacking Detections 1 | . 1 . Full Trace Events . | . . . Feedback Events . | . . . Feedback Blocked . | . . . Robot Schematics Acquired . | . . . Robots Built . | . . . Matter . | . . . Time . | . . . Total Robot Build Rating . | . . . Part Schematics Acquired . | . . . Parts Built . | . . . Matter . | . . . Time . | . . . Total Part Build Rating . | . . . Parts Repaired . | . . . Time . | . . . Parts Recycled . | . . . Recycled Matter . | . . . Retrieved Matter . | . . . Retrieved Components . | . . . Parts Scanalyzed . | . . . Part Schematics Acquired . | . . . Parts Damaged . | . . . Bothacking | -11 -10 -10 ------------ Run | Scr Mat Min Used RIF Installer . | . . . Robots Hacked . | . . . Non-combat . | . . . Combat . | . . . Robot Hacks Applied . | . . . Relay Couplers Released . | . . . Robots Rewired . | . . . Allies Hacked . | . . . Hacks Repelled . | . . . Allies | -11 -10 -10 -------- Run | Scr Mat Min Total Allies 3 | . . 3 Largest Group 3 | . . 3 Highest-Rated Group 40 | . . 40 Highest-Rated Ally 16 | . . 16 Total Orders . | . . . Ally Attacks 7 | . . 7 Total Damage 60 | . . 60 Kills 1 | . . 1 Allies Corrupted . | . . . Allies Melted . | . . . Intel | -11 -10 -10 ------- Run | Scr Mat Min Robot Analysis Total . | . . . Derelict Logs Recovered 1 | . . 1 Drone Launches . | . . . Drone Recoveries . | . . . Exploration | -11 -10 -10 ------------- Run | Scr Mat Min Turns Passed 527 | 127 219 181 Spaces Moved 383 | 78 148 157 Core 1 | 1 . . Treads 34 | 23 11 . Legs . | . . . Wheels 348 | 54 137 157 Hover . | . . . Flight . | . . . Fastest Speed 50 | 50 90 90 Average Speed 100 | 109 103 93 Slowest Speed 180 | 160 180 100 Overloaded Moves . | . . . Propulsion Burnouts . | . . . Robots Hopped . | . . . Cave-ins Triggered . | . . . Exploration Rate (%) 23 | 4 32 35 Regions Visited 2 Branch Regions 1 Pre-discovered Areas . | . . . Known Exits Taken 1 | . 1 . Unknown Exits Taken 1 | 1 . . Scrap Searched 2 | . . 2 Spaces Dug . | . . . Terrain Destroyed 1 | . 1 . Melee . | . . . Projectile 1 | . 1 . AOE . | . . . Actions | -11 -10 -10 --------- Run | Scr Mat Min Total 459 | 99 185 175 Wait 18 | . 12 6 Move 381 | 77 147 157 Hop . | . . . Pick Up 7 | 6 . 1 Fast Attach 11 | 7 4 . Attach 3 | . 3 . Detach . | . . . Swap 4 | 1 2 1 Drop 2 | . 1 1 Fire 32 | 8 15 9 Melee . | . . . Ram 1 | . 1 . Kick . | . . . Crush . | . . . Escape Stasis . | . . . Rewire . | . . . Trap . | . . . Miscellaneous . | . . . Route ------- -11/Scrapyard -10/Materials -10/Mines History --------- Turn | Location | Event 25 | -11/Scrapyard | Discovered new exit (range 16) 128 | -11/Scrapyard | Entered Materials 262 | -10/Materials | Core integrity fell below 50% 284 | -10/Materials | Core integrity fell below 20% 323 | -10/Materials | Lost 7 parts (1p1n1u4w) 324 | -10/Materials | Build established: Mutant 332 | -10/Materials | Discovered new exit (range 16) 346 | -10/Materials | Identified exit to Mines 347 | -10/Materials | Entered Mines 351 | -10/Mines | Learned Materials terminal intel 358 | -10/Mines | Assisted by bots powering up and referring to "LRC-V3" 430 | -10/Mines | Assembled infested the area 528 | -10/Mines | Destroyed by G-47 Trooper with Particle Gun Last Messages --------------- 00358_ Trooper 1b: "Hello LRC-V3. What is your command?" 00379_ Dropped Broken Lgt. Treads. 00408_ T-07 Excavator destroyed. 00412_ Acquired 14 matter. 00419_ Searching scrap... 00419_ Found 34 Matter. 00419_ Found 23 Matter. 00419_ Found Wheel. 00419_ Found Ion Engine. 00419_ Found Mining Claw. 00420_ Acquired 26 matter. 00422_ Acquired Mining Claw. 00430_ ALERT: Infestation in the mines, dispatching Demolisher response squad. 00477_ Searching scrap... 00477_ Found 30 Matter. 00477_ Found Tractor Beam. 00477_ Found Med. Matter Pod. 00477_ Found Lgt. Ion Engine. 00521_ G-34 Mercenary destroyed. Map ----- +----------------------------------------------------+ | ????????????????????????????????????????????? | | ????????????????????????????????????????????? | | ????????????????????????????????????????????? | | ????????????????????????????????????????????? | | ????????????????????????????????????????????? | | ????????????????????????????????????????????? | | ????????????????????????????????????????????? | | ????????????????????????????????????????????? | | ????????????????????????????????????????????? | | ????????????????????????????????????????????? | | ????????????????????????????????????????????? | | ????????????????????????????????????????????? | | ????????????????? ??????????????????????????? | | ??????????????? ?????????????????????????? | | ??????????????# ?????????????????????????? | | ??????????????? ????????????????????????? | | ???????????????? ????????????????????????? | | ????????????????? % ???????????????????????? | | ?????????????????? ???????????????????????? | | ??????????????????? ??????????????????????? | | ?????????????????### ??????????????????????? | | ????????????????## ?????????????????????? | | ????????????????# ???????####??????????? | | ????????????????# ?????## ##?????????? | | ??????????##????# t###### #?????????? | | ?????#???? ?????# [k@ #?????????? | | ????? #??? ?????## g #?????????? | | ????? ?? ??????#### ###### ##?????????? | | ????? ? ?????????###????## #??????????? | | ????# """" ???????????????## #??????????? | | ???? """" ??????????????## ##??????????? | | ???? """" ?????????????## ##??????????? | | ???? #????????????## ###????###?? | | ???? ?# #?????######## ##??# #?? | | #???# ??# #?????# ### #?? | | #???# #??# #?????# ###### #?? | | ##### #??# #?????# #????# ##??? | | #### #######*###### ### ##???? | | !%! ##?## #????? | | ######################### ##???# ##????? | | ????????????????????????###???# #?????? | | ?????????????????????????????# #?????? | | ?????????????????????????????# ##?????? | | ?????????????????????????????## #####??????? | | ??????????????????????????????####??????????? | | ????????????????????????????????????????????? | | ????????????????????????????????????????????? | | ????????????????????????????????????????????? | | ????????????????????????????????????????????? | | ????????????????????????????????????????????? | +----------------------------------------------------+ Best States ------------- Heat Dissipation 25 Energy Generation 10 Energy Capacity 250 Matter Stores 300 Matter Capacity 300 Sight Range 16 Terrain Scan Range 16 Terrain Scan Density 10 Evasion (%) 42 Recoil Reduction 1 Item Schematics ----------------- None Robot Schematics ------------------ None Fabricated ------------ Nothing Alien Tech Used ----------------- None Achievements -------------- None Challenges ------------ None Game ------ Seed MatterAntigravComputer Manual? 0 Play Time 00:11:50 Cumulative 52.2 hours Start 2020.07.13 @ 19:06:40 End 2020.07.13 @ 19:16:34 Sessions 1 Manual Loads 0 Difficulty Rogue Special Mode None Game No. 40 Rogue 35 Adventurer 5 Explorer 0 Win Type - Total 0 Types 0/0/0/0/0/0/0 Lore% 31 Gallery% 36 Achievement% 26 Wizard Run 0 Options --------- ASCII 0 Keyboard 1 Movement Arrows Keybinds 0 Fullscreen 1 Font 18/Smallcaps Map View 76x50 Tactical HUD 1 Map Filters NONE Filters NONE Steam 1 RUN: d08963f5-250e-4d66-94d2-7981996dca56